fUSD/lending_fUSD_20240527
["ID","MTS","AMOUNT","RATE_DAILY","PERIOD"]
[328058809,1716825033823,-499.99,0.00015678,2]
[328058810,1716825033832,-1228.26740172,0.000165,2]
[328058811,1716825033842,-2231.0,0.000166,2]
[328058812,1716825033851,-156.06469188,0.00017224,2]
[328058813,1716825033860,-1237.99526312,0.00017224,2]
[328058814,1716825033869,-8495.11057295,0.00017225,2]
[328058815,1716825033878,-1324.31,0.00017225,2]
[328058816,1716825033888,-581.75,0.00017396,2]
[328058817,1716825033898,-1556.82039177,0.00018,2]
[328058818,1716825033908,-804.551981,0.00018,2]
[328058819,1716825033917,-1660.4932607,0.000181,2]
[328058820,1716825033927,-458.2,0.00018366,2]
[328058821,1716825033936,-231.17028449,0.0001854,2]
[328058822,1716825033946,-200.0,0.00018739,2]
[328058823,1716825033956,-15115.19,0.00018792,2]
[328058824,1716825033965,-250.0,0.000188,2]
[328058825,1716825033976,-410.74423217,0.00019,2]
[328058826,1716825033986,-151.83941982,0.00019128,2]
[328058827,1716825034002,-98.16058018,0.00019128,2]
[328058828,1716825034011,-1000.0,0.00019189,2]
[328058829,1716825034021,-499.55,0.00019191,2]
[328058830,1716825034032,-1000.0,0.00019199,2]
[328058831,1716825034042,-7759.18331469,0.000192,2]
[328058832,1716825034051,-151.25,0.00019404,2]
[328058833,1716825034061,-581.75,0.0001966,2]
[328058834,1716825034070,-300.0,0.00019898,2]
[328058836,1716825034079,-151.25,0.0001991,2]
[328058838,1716825034088,-445.6637425,0.0002,2]
[328058840,1716825034097,-811.34297999,0.0002,2]
[328058842,1716825034107,-291.3726583,0.0002,2]
[328058844,1716825034116,-155.0,0.0002,2]
[328058846,1716825034126,-6245.03715167,0.0002,2]
[328058848,1716825034135,-1775.34519451,0.0002,2]
[328058850,1716825034145,-5190.83936008,0.0002,2]
[328058851,1716825034153,-3743.21744055,0.0002,2]
[328058854,1716825034164,-4891.93757754,0.0002,2]
[328058857,1716825034184,-1761.06242246,0.0002,2]
[328058859,1716825034194,-4155.70063623,0.0002,2]
[328058861,1716825034204,-78.88804131,0.0002,2]
[328058863,1716825034216,-76.11195869,0.0002,2]
[328058865,1716825034229,-3439.78804131,0.0002,2]
[328058867,1716825034242,-510.21195869,0.0002,2]
[328058869,1716825034252,-155.0,0.0002,2]
[328058871,1716825034262,-1560.33087535,0.0002,2]
[328058875,1716825034293,-681.33,0.0002,2]
[328058876,1716825034305,-321.49231361,0.0002,2]
[328058878,1716825034314,-1401.0,0.0002,2]
[328058880,1716825034323,-158.63331338,0.0002,2]
[328058882,1716825034332,-206.57,0.00020001,2]
[328058884,1716825034347,-151.25,0.00020416,2]
[328058886,1716825034356,-287.21309514,0.00021,2]
[328058891,1716825034399,-1150.62528168,0.00021,2]
[328058893,1716825034408,-1050.0,0.00021,2]
[328058895,1716825034418,-458.2,0.00021105,2]
[328058897,1716825034427,-231.17028449,0.00021518,2]
[328058899,1716825034436,-499.55,0.00021589,2]
[328058900,1716825034445,-1000.0,0.00021599,2]
[328058902,1716825034455,-19645.23566218,0.000216,2]
[328058904,1716825034464,-6777.42688104,0.000219,2]
[328058906,1716825034478,-346.98,0.00021918,2]
[328058908,1716825034487,-250.0,0.00021918,2]
[328058910,1716825034496,-581.75,0.00021924,2]
[328058912,1716825034505,-3884.49365683,0.00021998,2]
[328058914,1716825034514,-788.41578424,0.00022,2]
[328058916,1716825034523,-9163.1503525,0.00022,2]
[328058918,1716825034533,-5516.14498489,0.00023,2]
[328058920,1716825034542,-1100.0,0.00023,2]
[328058921,1716825034552,-2006.56918993,0.000234,2]
[328058922,1716825034562,-1201.53988731,0.00023457,2]
[328058923,1716825034571,-91306.11333018,0.000236,2]
[328058924,1716825034580,-458.2,0.00023845,2]
[328058925,1716825034590,-177.37,0.00023895,2]
[328058926,1716825034600,-165.0,0.00023975,2]
[328058927,1716825034609,-499.55,0.00023988,2]
[328058928,1716825034619,-1000.0,0.00023999,2]
[328058929,1716825034628,-434.9820745,0.00024,2]
[328058930,1716825034637,-472.80608482,0.00024,2]
[328058931,1716825034647,-581.75,0.00024188,2]
[328058932,1716825034656,-150.5243467,0.0002443,2]
[328058933,1716825034668,-231.17028449,0.00024497,2]
[328058934,1716825034677,-157.74104445,0.0002458,2]
[328058935,1716825034687,-150.5243467,0.0002462,2]
[328058936,1716825034696,-255.61158169,0.00024638,2]
[328058937,1716825034706,-150.5243467,0.00024672,2]
[328058938,1716825034715,-157.13517614,0.00024717,2]
[328058939,1716825034727,-154.79425337,0.00024798,2]
[328058940,1716825034736,-159.11882342,0.00024866,2]
[328058941,1716825034747,-155.5882237,0.00024871,2]
[328058942,1716825034758,-12551.52675872,0.00024889,2]
[328058943,1716825034767,-12551.52675866,0.00024889,2]
[328058944,1716825034777,-150.5243467,0.00024978,2]
[328058945,1716825034786,-150.5243467,0.00024995,2]
[328058946,1716825034795,-1199.87532147,0.00025,2]
[328058947,1716825034804,-155.0,0.00025,2]
[328058948,1716825034813,-5000.0,0.00025,7]
[328058949,1716825034823,-155.0,0.00025,2]
[328058950,1716825034832,-1273.2251464,0.00025,2]
[328058951,1716825034842,-224.52395494,0.00025,2]
[328058952,1716825034854,-927.63905296,0.00025,2]
[328058953,1716825034867,-1150.0,0.00025,2]
[328058954,1716825034877,-161.03562606,0.00025012,2]
[328058955,1716825034886,-154.79425337,0.00025047,2]
[328058956,1716825034895,-1000.0,0.00025205,2]
[328058957,1716825034904,-150.5243467,0.00025352,2]
[328058958,1716825034913,-155.5882237,0.0002547,2]
[328058959,1716825034923,-255.61158169,0.00025474,2]
[328058960,1716825034932,-155.5882237,0.00025487,2]
[328058961,1716825034941,-255.61158169,0.00025547,2]
[328058962,1716825034950,-150.5243467,0.00025599,2]
[328058963,1716825034959,-196.86001026,0.00025757,2]
[328058964,1716825034968,-159.11882342,0.00025764,2]
[328058965,1716825034981,-1296.8341525,0.00025812,2]
[328058966,1716825034990,-166.66666667,0.00025857,2]
[328058967,1716825034999,-163.36,0.0002589,2]
[328058968,1716825035008,-12551.52675866,0.00025902,2]
[328058969,1716825035017,-255.61158169,0.00025912,2]
[328058970,1716825035027,-154.79425337,0.00025945,2]
[328058971,1716825035036,-23462.47938176,0.00026,5]
[328058972,1716825035046,-4251.25543097,0.00026,2]
[328058973,1716825035056,-154.79425337,0.00026016,2]
[328058974,1716825035066,-157.74104445,0.00026064,2]
[328058975,1716825035077,-150.0,0.00026079,2]
[328058976,1716825035086,-155.32938531,0.00026099,2]
[328058977,1716825035097,-161.03562606,0.00026208,2]
[328058978,1716825035106,-255.61158169,0.00026263,2]
[328058979,1716825035115,-305.37480479,0.00026294,2]
[328058980,1716825035124,-321.96500424,0.00026352,2]
[328058981,1716825035133,-499.55,0.00026387,2]
[328058982,1716825035143,-1000.0,0.00026399,2]
[328058983,1716825035153,-25814.98906147,0.000264,2]
[328058984,1716825035162,-581.75,0.00026451,2]
[328058985,1716825035172,-152.93546982,0.00026653,2]
[328058986,1716825035181,-150.0,0.00026721,2]
[328058987,1716825035191,-150.5243467,0.00026747,2]
[328058988,1716825035200,-162036.77310993,0.000268,2]
[328058997,1716825038867,-619.51183842,0.0001549,2]
[328058998,1716825038877,-2.59528098,0.000268,2]
[328058999,1716825038887,-155.52085445,0.00026854,2]
[328059000,1716825038897,-159.11882344,0.00026903,2]
[328059001,1716825038908,-154.79425337,0.00026911,2]
[328059002,1716825038918,-150.5243467,0.00026944,2]
[328059003,1716825038928,-6670.64912264,0.00026956,2]
[328059004,1716825038939,-1538.04976078,0.00026956,2]
[328059005,1716825038951,-1002.84799748,0.00026956,2]
[328059006,1716825038964,-3339.97987776,0.00026956,2]
[328059007,1716825038975,-255.61158169,0.00026972,2]
[328059008,1716825038984,-154.79425337,0.00026985,2]
[328059009,1716825038993,-1200.0,0.00027,2]
[328059010,1716825039002,-153.66058828,0.00027039,2]
[328059011,1716825039012,-152.93546982,0.00027166,2]
[328059012,1716825039021,-150.0,0.0002718,2]
[328059013,1716825039031,-150.0,0.0002723,2]
[328059014,1716825039041,-2268.50888984,0.0002724,2]
[328059015,1716825039054,-1527.20049393,0.0002724,2]
[328059016,1716825039066,-1359.91631518,0.0002724,2]
[328059017,1716825039076,-157.13517614,0.00027245,2]
[328059018,1716825039086,-691.6082774,0.00027271,2]
[328059019,1716825039096,-343.71256136,0.00027279,2]
[328059020,1716825039105,-402.61615402,0.00027279,2]
[328059021,1716825039115,-794.21166416,0.00027279,2]
[328059022,1716825039125,-318.10175994,0.00027279,2]
[328059023,1716825039135,-207.79137545,0.0002728,2]
[328059024,1716825039145,-14714.40671609,0.00027281,7]
[328059025,1716825039158,-58389.85955618,0.00027281,7]
[328059026,1716825039177,-703.38,0.00027281,7]
[328059027,1716825039194,-640.0584618,0.00027281,7]
[328059028,1716825039211,-632.38257553,0.00027281,7]
[328059029,1716825039222,-157.74104445,0.00027362,2]
[328059030,1716825039236,-805.42124353,0.0002739,2]
[328059031,1716825039246,-824.76,0.00027397,10]
[328059032,1716825039256,-2221.93,0.000274,2]
[328059033,1716825039266,-2221.93,0.000274,2]
[328059034,1716825039276,-231.17028449,0.00027476,2]
[328059035,1716825039286,-154.79425337,0.00027577,2]
[328059036,1716825039296,-154.79425337,0.00027584,2]
[328059037,1716825039306,-255.61158169,0.000276,2]
[328059038,1716825039316,-150.0,0.00027609,2]
[328059039,1716825039326,-154.12,0.00027641,2]
[328059040,1716825039336,-153.62147375,0.00027642,2]
[328059041,1716825039346,-321.96500422,0.00027737,2]
[328059042,1716825039355,-153.66058828,0.00027838,2]
[328059043,1716825039365,-255.61158169,0.00027846,2]
[328059044,1716825039375,-150.5243467,0.00027848,2]
[328059045,1716825039386,-150.5243467,0.00027892,2]
[328059046,1716825039396,-300.0,0.000279,10]
[328059047,1716825039406,-2221.93,0.00028,2]
[328059048,1716825039416,-12551.52675866,0.0002801,2]
[328059049,1716825039426,-150.0,0.0002805,2]
[328059050,1716825039436,-500.0,0.00028102,2]
[328059051,1716825039446,-500.0,0.00028102,2]
[328059052,1716825039455,-500.0,0.00028102,2]
[328059053,1716825039466,-500.0,0.00028102,2]
[328059054,1716825039479,-538.28359419,0.000282,2]
[328059055,1716825039488,-154.79425337,0.00028245,2]
[328059056,1716825039498,-155.5882237,0.00028506,2]
[328059057,1716825039507,-500.0,0.0002865,2]
[328059058,1716825039517,-581.75,0.00028715,2]
[328059059,1716825039526,-255.61158169,0.00028763,2]
[328059060,1716825039536,-499.55,0.00028786,2]
[328059061,1716825039545,-153.66058828,0.00028786,2]
[328059062,1716825039554,-153.62147375,0.00028797,2]
[328059063,1716825039563,-1000.0,0.00028799,2]
[328059064,1716825039573,-154.79425337,0.00028954,2]
[328059065,1716825039583,-1250.0,0.00029,2]
[328059066,1716825039592,-150.5243467,0.00029014,2]
[328059067,1716825039601,-12551.52675866,0.00029063,2]
[328059068,1716825039611,-155.5882237,0.00029098,2]
[328059069,1716825039620,-321.96500422,0.00029122,2]
[328059070,1716825039629,-255.61158169,0.00029134,2]
[328059071,1716825039639,-500.0,0.00029198,2]
[328059072,1716825039648,-506.36392113,0.00029198,2]
[328059073,1716825039657,-506.97644353,0.00029198,2]
[328059074,1716825039668,-153.62147375,0.00029316,2]
[328059075,1716825039681,-153.62147375,0.0002935,2]
[328059076,1716825039691,-150.5243467,0.00029482,2]
[328059077,1716825039700,-255.61158169,0.00029495,2]
[328059078,1716825039711,-152.93546982,0.00029655,2]
[328059079,1716825039720,-255.61158169,0.00029663,2]
[328059080,1716825039732,-500.0,0.00029746,2]
[328059081,1716825039741,-153.62147375,0.00029746,2]
[328059082,1716825039751,-154.79425337,0.00029829,2]
[328059083,1716825039761,-155.5882237,0.0002996,2]
[328059084,1716825039771,-255.61158169,0.00029976,2]
[328059085,1716825039781,-154.79425337,0.00029998,2]
[328059086,1716825039791,-155.0,0.0003,4]
[328059087,1716825039800,-844.50730927,0.0003,10]
[328059088,1716825039810,-1350.0,0.0003,10]
[328059089,1716825039819,-157.47813498,0.00030039,7]
[328059090,1716825039828,-12551.52675866,0.00030117,10]
[328059091,1716825039838,-200.0,0.00030137,2]
[328059092,1716825039848,-150.5243467,0.00030161,7]
[328059093,1716825039857,-150.5243467,0.00030238,7]
[328059094,1716825039866,-157.13517614,0.00030241,7]
[328059095,1716825039875,-150.5243467,0.00030269,7]
[328059096,1716825039885,-150.0,0.00030272,2]
[328059097,1716825039896,-500.0,0.00030294,10]
[328059098,1716825039906,-161.03562606,0.00030303,7]
[328059099,1716825039916,-161.03562606,0.00030383,7]
[328059100,1716825039926,-154.79425337,0.000304,7]
[328059101,1716825039935,-150.0,0.00030428,7]
[328059102,1716825039944,-155.5882237,0.00030432,7]
[328059104,1716825039954,-231.17028449,0.00030454,2]
[328059106,1716825039963,-150.5243467,0.00030495,7]
[328059108,1716825039973,-321.96500422,0.00030508,2]
[328059109,1716825039985,-150.0,0.00030543,2]
[328059110,1716825039995,-156.5611123,0.00030566,7]
[328059111,1716825040005,-255.61158169,0.00030587,7]
[328059113,1716825040015,-154.79425337,0.00030694,7]
[328059114,1716825040025,-150.0,0.00030696,2]
[328059115,1716825040035,-150.0,0.00030701,2]
[328059116,1716825040044,-150.0,0.00030722,2]
[328059117,1716825040054,-255.61158169,0.00030743,7]
[328059118,1716825040064,-150.0,0.00030763,2]
[328059119,1716825040074,-150.0,0.0003081,2]
[328059122,1716825040083,-154.79425337,0.00030813,7]
[328059125,1716825040093,-500.0,0.00030842,10]
[328059127,1716825040103,-180.27168715,0.00030888,3]
[328059129,1716825040112,-150.0,0.00030935,2]
[328059131,1716825040122,-150.5243467,0.00030948,7]
[328059133,1716825040132,-197.767888,0.00030959,14]
[328059135,1716825040143,-581.75,0.00030979,2]
[328059136,1716825040152,-150.5243467,0.00030988,7]
[328059137,1716825040162,-1300.0,0.00031,2]
[328059138,1716825040172,-345.77124987,0.00031,4]
[328059139,1716825040182,-150.5243467,0.0003102,7]
[328059140,1716825040193,-150.0,0.00031047,2]
[328059141,1716825040203,-150.0,0.0003105,2]
[328059142,1716825040213,-150.0,0.00031058,2]
[328059143,1716825040223,-150.0,0.00031068,2]
[328059144,1716825040236,-255.61158169,0.00031072,7]
[328059145,1716825040246,-150.0,0.00031075,2]
[328059146,1716825040255,-150.0,0.00031113,2]
[328059147,1716825040265,-150.0,0.00031143,2]
[328059148,1716825040276,-150.0,0.00031145,2]
[328059149,1716825040285,-157.74104445,0.00031145,7]
[328059150,1716825040295,-12551.52675866,0.00031171,10]
[328059151,1716825040305,-153.62147375,0.00031171,7]
[328059152,1716825040315,-150.0,0.00031175,2]
[328059153,1716825040325,-150.0,0.00031182,2]
[328059154,1716825040335,-150.0,0.00031187,2]
[328059155,1716825040345,-2250.0,0.000312,2]
[328059156,1716825040355,-153.62147375,0.00031208,7]
[328059157,1716825040365,-150.0,0.00031222,2]
[328059158,1716825040375,-150.0,0.00031263,2]
[328059159,1716825040385,-150.0,0.00031274,2]
[328059160,1716825040396,-150.0,0.00031313,2]
[328059161,1716825040406,-150.0,0.00031328,2]
[328059162,1716825040416,-255.61158169,0.00031337,7]
[328059163,1716825040426,-169.00998556,0.00031366,7]
[328059164,1716825040437,-150.5243467,0.00031369,7]
[328059165,1716825040447,-150.0,0.00031387,2]
[328059166,1716825040457,-500.0,0.0003139,10]
[328059167,1716825040468,-421.33,0.00031397,2]
[328059168,1716825040480,-150.0,0.00031397,2]
[328059169,1716825040490,-352.32,0.00031397,2]
[328059170,1716825040499,-150.0,0.00031397,2]
[328059171,1716825040509,-163.69,0.00031397,2]
[328059172,1716825040519,-150.0,0.00031397,2]
[328059173,1716825040528,-150.0,0.00031397,2]
[328059174,1716825040538,-421.33,0.00031397,2]
[328059175,1716825040548,-150.0,0.00031397,2]
[328059176,1716825040558,-150.0,0.00031397,2]
[328059177,1716825040567,-352.32,0.00031397,2]
[328059178,1716825040577,-163.69,0.00031397,2]
[328059179,1716825040586,-150.0,0.00031397,2]
[328059180,1716825040596,-150.0,0.00031397,2]
[328059181,1716825040606,-150.0,0.00031397,2]
[328059182,1716825040616,-150.0,0.00031397,2]
[328059183,1716825040626,-421.33,0.00031397,2]
[328059184,1716825040636,-352.32,0.00031397,2]
[328059185,1716825040646,-318.25,0.00031397,2]
[328059186,1716825040656,-163.69,0.00031397,2]
[328059187,1716825040670,-426.55,0.00031397,2]
[328059188,1716825040680,-162.82,0.00031397,2]
[328059189,1716825040690,-332.63,0.00031397,2]
[328059190,1716825040699,-352.32,0.00031397,2]
[328059191,1716825040710,-718.27,0.00031397,2]
[328059192,1716825040720,-421.33,0.00031397,2]
[328059193,1716825040730,-150.0,0.00031397,2]
[328059194,1716825040741,-150.0,0.00031397,2]
[328059195,1716825040751,-163.69,0.00031397,2]
[328059196,1716825040761,-352.32,0.00031397,2]
[328059197,1716825040770,-2319.901296,0.000314,12]
[328059198,1716825040780,-369.15,0.00031426,2]
[328059199,1716825040790,-150.0,0.0003143,2]
[328059200,1716825040799,-150.0,0.00031444,2]
[328059201,1716825040808,-154.79425337,0.00031445,7]
[328059202,1716825040818,-150.0,0.00031469,2]
[328059203,1716825040827,-150.0,0.00031483,2]
[328059204,1716825040839,-180.27168715,0.00031506,4]
[328059205,1716825040849,-150.0,0.00031523,2]
[328059206,1716825040859,-150.0,0.0003158,2]
[328059207,1716825040869,-150.0,0.00031581,2]
[328059208,1716825040879,-255.61158169,0.00031589,7]
[328059209,1716825040888,-150.0,0.00031592,2]
[328059210,1716825040898,-150.0,0.00031661,2]
[328059211,1716825040908,-154.79425337,0.00031663,7]
[328059212,1716825040918,-150.0,0.00031682,2]
[328059213,1716825040927,-155.52085445,0.00031698,7]
[328059214,1716825040938,-150.0,0.00031726,2]
[328059215,1716825040948,-150.0,0.00031743,2]
[328059216,1716825040957,-150.5243467,0.00031748,7]
[328059217,1716825040967,-150.0,0.00031755,2]
[328059218,1716825040978,-150.0,0.00031769,2]
[328059219,1716825040987,-197.767888,0.00031781,14]
[328059220,1716825040997,-150.0,0.00031795,2]
[328059221,1716825041006,-150.0,0.00031802,2]
[328059222,1716825041015,-150.0,0.0003183,2]
[328059223,1716825041024,-150.5243467,0.00031871,7]
[328059224,1716825041034,-1000.0,0.00031878,31]
[328059225,1716825041043,-321.96500422,0.00031893,2]
[328059226,1716825041052,-2000.0,0.000319,2]
[328059227,1716825041063,-2000.0,0.000319,2]
[328059228,1716825041072,-700.0,0.000319,11]
[328059229,1716825041082,-1500.0,0.000319,12]
[328059230,1716825041091,-3035.199484,0.0003191,2]
[328059231,1716825041101,-3800.515381,0.0003191,2]
[328059232,1716825041110,-500.0,0.00031938,10]
[328059233,1716825041119,-150.0,0.00031938,2]
[328059234,1716825041129,-255.61158169,0.00031958,7]
[328059235,1716825041138,-255.61158169,0.00031979,7]
[328059236,1716825041147,-17495.66639678,0.00032,4]
[328059237,1716825041156,-150.0,0.00032003,2]
[328059238,1716825041166,-150.0,0.00032023,2]
[328059239,1716825041175,-150.0,0.00032026,2]
[328059240,1716825041185,-150.0,0.00032037,2]
[328059241,1716825041195,-150.0,0.00032057,2]
[328059242,1716825041205,-150.0,0.0003207,2]
[328059243,1716825041214,-150.0,0.00032082,2]
[328059244,1716825041224,-150.0,0.00032092,2]
[328059245,1716825041239,-152.79444414,0.00032117,7]
[328059246,1716825041251,-150.0,0.00032121,2]
[328059247,1716825041261,-180.27168715,0.00032124,5]
[328059248,1716825041270,-150.97,0.00032131,2]
[328059249,1716825041280,-155.5882237,0.00032141,7]
[328059250,1716825041290,-150.5243467,0.00032169,7]
[328059251,1716825041299,-255.61158169,0.00032177,7]
[328059252,1716825041309,-1100.0,0.000322,11]
[328059253,1716825041319,-150.97,0.00032214,2]
[328059254,1716825041328,-150.97,0.00032214,2]
[328059255,1716825041474,-150.97,0.00032214,2]
[328059256,1716825041489,-150.97,0.00032214,2]
[328059257,1716825041499,-150.97,0.00032214,2]
[328059258,1716825041508,-150.97,0.00032214,2]
[328059259,1716825041516,-2221.93,0.00032214,2]
[328059260,1716825041525,-2221.93,0.00032214,2]
[328059261,1716825041534,-2221.93,0.00032214,2]
[328059262,1716825041543,-2221.93,0.00032214,2]
[328059264,1716825041552,-421.33,0.00032219,2]
[328059266,1716825041561,-352.32,0.00032219,2]
[328059268,1716825041571,-150.0,0.00032219,2]
[328059270,1716825041581,-150.0,0.00032219,2]
[328059272,1716825041590,-163.69,0.00032219,2]
[328059274,1716825041599,-163.69,0.00032219,2]
[328059276,1716825041609,-150.0,0.00032219,2]
[328059278,1716825041618,-150.0,0.00032219,2]
[328059279,1716825041627,-594.45,0.00032219,2]
[328059281,1716825041637,-421.33,0.00032219,2]
[328059283,1716825041646,-150.0,0.00032219,2]
[328059285,1716825041656,-163.69,0.00032219,2]
[328059287,1716825041667,-421.33,0.00032219,2]
[328059289,1716825041679,-163.69,0.00032219,2]
[328059291,1716825041688,-163.69,0.00032219,2]
[328059293,1716825041698,-163.69,0.00032219,2]
[328059295,1716825041707,-162.88,0.00032219,2]
[328059297,1716825041718,-4069.76911348,0.00032221,2]
[328059299,1716825041730,-42135.81084393,0.00032224,11]
[328059307,1716825041942,-2176.56693811,0.00032224,11]
[328059308,1716825041954,-1530.08172424,0.00032224,11]
[328059309,1716825041965,-3969.1,0.00032224,11]
[328059326,1716825042182,-849.66232,0.00027397,10]
[328059329,1716825042194,-80.56768,0.00027397,10]
[328059331,1716825042203,-6961.37623151,0.00032224,11]
[328059335,1716825042236,-863.73594624,0.00032224,11]
[328059337,1716825042246,-4366.98300917,0.00032224,11]
[328059353,1716825042401,-5632.57595281,0.00032224,11]
[328059356,1716825042413,-855.37600022,0.00032224,11]
[328059357,1716825042424,-370.9504925,0.00032224,11]
[328059359,1716825042436,-912.5831558,0.00032224,11]
[328059361,1716825042447,-1091.112,0.00032224,11]
[328059363,1716825042466,-141583.45415797,0.00032224,11]
[328059364,1716825042483,-9920.5,0.00032224,11]
[328059365,1716825042498,-2344.57979624,0.00032224,11]
[328059379,1716825042751,-8784.13621518,0.00032224,11]
[328059381,1716825042924,-150.0,0.00031397,2]
[328059382,1716825042934,-5783.1114131,0.00032224,11]
[328059401,1716825046651,-537.63892784,0.00026879,2]
[328059403,1716825046662,-759.1952246,0.00026879,2]
[328059405,1716825046673,-1090.27219311,0.00031396,4]
[328059407,1716825046688,-136.48258229,0.00031396,10]
[328059411,1716825046717,-71.30975007,0.00031396,10]
[328059413,1716825046726,-778.2805019,0.00031396,2]
[328059415,1716825046744,-33.6276407,0.00031397,2]
[328059424,1716825046844,-387.7023593,0.00031397,2]
[328059425,1716825046855,-352.32,0.00031397,2]
[328059426,1716825046866,-163.69,0.00031397,2]
[328059427,1716825046876,-150.0,0.00031397,2]
[328059428,1716825046885,-78335.28764071,0.00032224,11]
[328059429,1716825046909,-3893.14823999,0.00032224,11]
[328059430,1716825046920,-6850.2,0.00032224,11]
[328059431,1716825046971,-112606.57551664,0.00032224,11]
[328059432,1716825047701,-4750.5607101,0.00032224,11]
[328059435,1716825125625,173.82,0.00029732,120]
[328059436,1716825367033,208.16,0.00013973,2]
[328059437,1716825467529,1612.63139419,0.00031,120]
[328059439,1716825790604,-155.0,0.00015378,2]
[328059440,1716825790626,-259.15698985,0.00015379,2]
[328059441,1716825790650,-619.51183842,0.0001538,2]
[328059442,1716825790672,-166.13216604,0.00015381,2]
[328059443,1716825790696,-4602.79716247,0.00015381,2]
[328059444,1716825790717,-313.46115937,0.0001539,2]
[328059445,1716825790741,-150.0,0.00015392,2]
[328059446,1716825790762,-12073.94068385,0.00015393,2]
[328059454,1716825910809,152.82,0.00013973,2]
[328059456,1716826007200,552.97642451,0.00013973,2]
[328059466,1716826058166,2549.58812161,0.0001048,2]
[328059467,1716826059136,5000.0,0.00013973,2]
[328059486,1716826232766,-644.15206775,0.00015382,2]
[328059487,1716826232775,-166.13216604,0.00015382,2]
[328059488,1716826232784,-1791.65735805,0.00015383,2]
[328059489,1716826232793,-2002.95900656,0.00015383,2]
[328059490,1716826232802,-2235.6066056,0.0001539,2]
[328059491,1716826232811,-150.0,0.00015392,2]
[328059492,1716826232821,-18992.15791536,0.00015393,2]
[328059493,1716826232831,-1228.26740172,0.00016699,2]
[328059494,1716826232840,-752.0,0.000167,2]
[328059495,1716826232850,-2664.0,0.000168,2]
[328059496,1716826232859,-1656.08,0.00017534,2]
[328059497,1716826232868,-499.99,0.00017808,2]
[328059498,1716826232877,-9999.99,0.00017808,2]
[328059499,1716826232887,-804.551981,0.00018,2]
[328059500,1716826232896,-3884.49365683,0.00019451,2]
[328059501,1716826232906,-150.0,0.00019631,2]
[328059502,1716826232915,-155.0,0.00019725,2]
[328059503,1716826232925,-1498.79664066,0.0002,2]
[328059504,1716826233064,-155.0,0.0002,2]
[328059505,1716826233078,-6245.03715167,0.00020999,2]
[328059506,1716826233088,-1050.0,0.00021,2]
[328059507,1716826233097,-1000.0,0.00021495,2]
[328059508,1716826233110,-11154.12804474,0.000216,2]
[328059509,1716826233128,-1655.49343482,0.000216,2]
[328059510,1716826233140,-700.88581,0.000216,2]
[328059511,1716826233156,-703.33,0.000216,2]
[328059512,1716826233167,-845.39999995,0.000216,2]
[328059513,1716826233178,-4585.99837267,0.000216,2]
[328059514,1716826233187,-1295.62688555,0.00021999,2]
[328059515,1716826233199,-834.11576898,0.00021999,2]
[328059516,1716826233210,-935.11650011,0.00021999,2]
[328059517,1716826233230,-3712.5677264,0.00021999,2]
[328059518,1716826233240,-9163.1503525,0.00022,2]
[328059519,1716826233250,-788.41578424,0.00022,2]
[328059520,1716826233261,-433.82,0.00022224,2]
[328059521,1716826233270,-5516.14498489,0.00023,2]
[328059522,1716826233279,-1100.0,0.00023,2]
[328059523,1716826233288,-618.33534936,0.00023399,2]
[328059524,1716826233298,-2006.56918993,0.000234,2]
[328059525,1716826233308,-1351.1,0.00023823,2]
[328059526,1716826233318,-242.37,0.00023889,2]
[328059527,1716826233327,-9958.71,0.00024057,2]
[328059528,1716826233335,-1027.37,0.00024169,2]